{"text_format":"1","workbook":"xlsx","n_sheets":3,"sheets":["Planning Perpétuel","Paramètres_Application","Base de données"],"not_rendered":{"charts":0,"images":2,"macros":1,"external_links":0,"defined_names":10,"comments":0,"pivot_tables":0},"unopened":[],"bounds":{"document_bytes":16777216,"sheet_cells":100000,"rows_first":2000,"rows_last":500,"rows_between":2000,"halvings":0,"cell_chars":16384,"cell_head_chars":4096},"cells_cut":0,"cells_raw":0,"read":"whole","date_system":"1900"}

{"sheet":"Planning Perpétuel","index":0,"n_rows":43,"n_cols":44,"rows_kept":43,"cut":false,"hidden":false,"merged":[[1,0,1,5],[0,0,0,5]]}
["Ici une fenêtre pour afficher des messages ou bien un logo ou toutes autres informations.",null,null,null,null,null,{"$f":"PROPER(TEXT(G$4,\"MMMM\"))&\" \"&YEAR(G4)","v":"Février 2018"},{"$f":"IF(MONTH(H$4)=MONTH(G$4),\"\",PROPER(TEXT(H$4,\"MMMM\"))&\" \"&YEAR(H$4))","v":""},{"$f":"IF(MONTH(I$4)=MONTH(H$4),\"\",PROPER(TEXT(I$4,\"MMMM\"))&\" \"&YEAR(I$4))","v":""},"","","","","","","","","","","","","Mars 2018","","","","","","","","","","","","","","","","","","","","",""]
["Ci-dessous 6 colonnes de \"gestion\" en rapport avec le calendrier",null,null,null,null,null,{"$f":"IF(WEEKDAY(G$4,T_SE)>=4,\"S\"&TEXT(INT((G$4-LOOKUP(G$4,DATE(YEAR(G$4)+{-1;0;1},1,3)-WEEKDAY(DATE(YEAR(G$4)+{-1;0;1},1,3))+2))/7)+1,\"00\"),\"\")","v":{"$error":"#NUM!"}},{"$f":"IF(WEEKDAY(H$4,T_SE)=4,\"S\"&TEXT(INT((H$4-LOOKUP(H$4,DATE(YEAR(H$4)+{-1;0;1},1,3)-WEEKDAY(DATE(YEAR(H$4)+{-1;0;1},1,3))+2))/7)+1,\"00\"),\"\")","v":{"$error":"#NUM!"}},{"$f":"IF(WEEKDAY(I$4,T_SE)=4,\"S\"&TEXT(INT((I$4-LOOKUP(I$4,DATE(YEAR(I$4)+{-1;0;1},1,3)-WEEKDAY(DATE(YEAR(I$4)+{-1;0;1},1,3))+2))/7)+1,\"00\"),\"\")","v":{"$error":"#NUM!"}},{"$f":"IF(WEEKDAY(J$4,T_SE)=4,\"S\"&TEXT(INT((J$4-LOOKUP(J$4,DATE(YEAR(J$4)+{-1;0;1},1,3)-WEEKDAY(DATE(YEAR(J$4)+{-1;0;1},1,3))+2))/7)+1,\"00\"),\"\")","v":{"$error":"#NUM!"}},{"$f":"IF(WEEKDAY(K$4,T_SE)=4,\"S\"&TEXT(INT((K$4-LOOKUP(K$4,DATE(YEAR(K$4)+{-1;0;1},1,3)-WEEKDAY(DATE(YEAR(K$4)+{-1;0;1},1,3))+2))/7)+1,\"00\"),\"\")","v":{"$error":"#NUM!"}},{"$f":"IF(WEEKDAY(L$4,T_SE)=4,\"S\"&TEXT(INT((L$4-LOOKUP(L$4,DATE(YEAR(L$4)+{-1;0;1},1,3)-WEEKDAY(DATE(YEAR(L$4)+{-1;0;1},1,3))+2))/7)+1,\"00\"),\"\")","v":{"$error":"#NUM!"}},{"$f":"IF(WEEKDAY(M$4,T_SE)=4,\"S\"&TEXT(INT((M$4-LOOKUP(M$4,DATE(YEAR(M$4)+{-1;0;1},1,3)-WEEKDAY(DATE(YEAR(M$4)+{-1;0;1},1,3))+2))/7)+1,\"00\"),\"\")","v":{"$error":"#NUM!"}},{"$f":"IF(WEEKDAY(N$4,T_SE)=4,\"S\"&TEXT(INT((N$4-LOOKUP(N$4,DATE(YEAR(N$4)+{-1;0;1},1,3)-WEEKDAY(DATE(YEAR(N$4)+{-1;0;1},1,3))+2))/7)+1,\"00\"),\"\")","v":{"$error":"#NUM!"}},{"$f":"IF(WEEKDAY(O$4,T_SE)=4,\"S\"&TEXT(INT((O$4-LOOKUP(O$4,DATE(YEAR(O$4)+{-1;0;1},1,3)-WEEKDAY(DATE(YEAR(O$4)+{-1;0;1},1,3))+2))/7)+1,\"00\"),\"\")","v":{"$error":"#NUM!"}},{"$f":"IF(WEEKDAY(P$4,T_SE)=4,\"S\"&TEXT(INT((P$4-LOOKUP(P$4,DATE(YEAR(P$4)+{-1;0;1},1,3)-WEEKDAY(DATE(YEAR(P$4)+{-1;0;1},1,3))+2))/7)+1,\"00\"),\"\")","v":{"$error":"#NUM!"}},{"$f":"IF(WEEKDAY(Q$4,T_SE)=4,\"S\"&TEXT(INT((Q$4-LOOKUP(Q$4,DATE(YEAR(Q$4)+{-1;0;1},1,3)-WEEKDAY(DATE(YEAR(Q$4)+{-1;0;1},1,3))+2))/7)+1,\"00\"),\"\")","v":{"$error":"#NUM!"}},{"$f":"IF(WEEKDAY(R$4,T_SE)=4,\"S\"&TEXT(INT((R$4-LOOKUP(R$4,DATE(YEAR(R$4)+{-1;0;1},1,3)-WEEKDAY(DATE(YEAR(R$4)+{-1;0;1},1,3))+2))/7)+1,\"00\"),\"\")","v":{"$error":"#NUM!"}},{"$f":"IF(WEEKDAY(S$4,T_SE)=4,\"S\"&TEXT(INT((S$4-LOOKUP(S$4,DATE(YEAR(S$4)+{-1;0;1},1,3)-WEEKDAY(DATE(YEAR(S$4)+{-1;0;1},1,3))+2))/7)+1,\"00\"),\"\")","v":{"$error":"#NUM!"}},{"$f":"IF(WEEKDAY(T$4,T_SE)=4,\"S\"&TEXT(INT((T$4-LOOKUP(T$4,DATE(YEAR(T$4)+{-1;0;1},1,3)-WEEKDAY(DATE(YEAR(T$4)+{-1;0;1},1,3))+2))/7)+1,\"00\"),\"\")","v":{"$error":"#NUM!"}},{"$f":"IF(WEEKDAY(U$4,T_SE)=4,\"S\"&TEXT(INT((U$4-LOOKUP(U$4,DATE(YEAR(U$4)+{-1;0;1},1,3)-WEEKDAY(DATE(YEAR(U$4)+{-1;0;1},1,3))+2))/7)+1,\"00\"),\"\")","v":{"$error":"#NUM!"}},{"$f":"IF(WEEKDAY(V$4,T_SE)=4,\"S\"&TEXT(INT((V$4-LOOKUP(V$4,DATE(YEAR(V$4)+{-1;0;1},1,3)-WEEKDAY(DATE(YEAR(V$4)+{-1;0;1},1,3))+2))/7)+1,\"00\"),\"\")","v":{"$error":"#NUM!"}},{"$f":"IF(WEEKDAY(W$4,T_SE)=4,\"S\"&TEXT(INT((W$4-LOOKUP(W$4,DATE(YEAR(W$4)+{-1;0;1},1,3)-WEEKDAY(DATE(YEAR(W$4)+{-1;0;1},1,3))+2))/7)+1,\"00\"),\"\")","v":{"$error":"#NUM!"}},{"$f":"IF(WEEKDAY(X$4,T_SE)=4,\"S\"&TEXT(INT((X$4-LOOKUP(X$4,DATE(YEAR(X$4)+{-1;0;1},1,3)-WEEKDAY(DATE(YEAR(X$4)+{-1;0;1},1,3))+2))/7)+1,\"00\"),\"\")","v":{"$error":"#NUM!"}},{"$f":"IF(WEEKDAY(Y$4,T_SE)=4,\"S\"&TEXT(INT((Y$4-LOOKUP(Y$4,DATE(YEAR(Y$4)+{-1;0;1},1,3)-WEEKDAY(DATE(YEAR(Y$4)+{-1;0;1},1,3))+2))/7)+1,\"00\"),\"\")","v":{"$error":"#NUM!"}},{"$f":"IF(WEEKDAY(Z$4,T_SE)=4,\"S\"&TEXT(INT((Z$4-LOOKUP(Z$4,DATE(YEAR(Z$4)+{-1;0;1},1,3)-WEEKDAY(DATE(YEAR(Z$4)+{-1;0;1},1,3))+2))/7)+1,\"00\"),\"\")","v":{"$error":"#NUM!"}},{"$f":"IF(WEEKDAY(AA$4,T_SE)=4,\"S\"&TEXT(INT((AA$4-LOOKUP(AA$4,DATE(YEAR(AA$4)+{-1;0;1},1,3)-WEEKDAY(DATE(YEAR(AA$4)+{-1;0;1},1,3))+2))/7)+1,\"00\"),\"\")","v":{"$error":"#NUM!"}},{"$f":"IF(WEEKDAY(AB$4,T_SE)=4,\"S\"&TEXT(INT((AB$4-LOOKUP(AB$4,DATE(YEAR(AB$4)+{-1;0;1},1,3)-WEEKDAY(DATE(YEAR(AB$4)+{-1;0;1},1,3))+2))/7)+1,\"00\"),\"\")","v":{"$error":"#NUM!"}},{"$f":"IF(WEEKDAY(AC$4,T_SE)=4,\"S\"&TEXT(INT((AC$4-LOOKUP(AC$4,DATE(YEAR(AC$4)+{-1;0;1},1,3)-WEEKDAY(DATE(YEAR(AC$4)+{-1;0;1},1,3))+2))/7)+1,\"00\"),\"\")","v":{"$error":"#NUM!"}},{"$f":"IF(WEEKDAY(AD$4,T_SE)=4,\"S\"&TEXT(INT((AD$4-LOOKUP(AD$4,DATE(YEAR(AD$4)+{-1;0;1},1,3)-WEEKDAY(DATE(YEAR(AD$4)+{-1;0;1},1,3))+2))/7)+1,\"00\"),\"\")","v":{"$error":"#NUM!"}},{"$f":"IF(WEEKDAY(AE$4,T_SE)=4,\"S\"&TEXT(INT((AE$4-LOOKUP(AE$4,DATE(YEAR(AE$4)+{-1;0;1},1,3)-WEEKDAY(DATE(YEAR(AE$4)+{-1;0;1},1,3))+2))/7)+1,\"00\"),\"\")","v":{"$error":"#NUM!"}},{"$f":"IF(WEEKDAY(AF$4,T_SE)=4,\"S\"&TEXT(INT((AF$4-LOOKUP(AF$4,DATE(YEAR(AF$4)+{-1;0;1},1,3)-WEEKDAY(DATE(YEAR(AF$4)+{-1;0;1},1,3))+2))/7)+1,\"00\"),\"\")","v":{"$error":"#NUM!"}},{"$f":"IF(WEEKDAY(AG$4,T_SE)=4,\"S\"&TEXT(INT((AG$4-LOOKUP(AG$4,DATE(YEAR(AG$4)+{-1;0;1},1,3)-WEEKDAY(DATE(YEAR(AG$4)+{-1;0;1},1,3))+2))/7)+1,\"00\"),\"\")","v":{"$error":"#NUM!"}},{"$f":"IF(WEEKDAY(AH$4,T_SE)=4,\"S\"&TEXT(INT((AH$4-LOOKUP(AH$4,DATE(YEAR(AH$4)+{-1;0;1},1,3)-WEEKDAY(DATE(YEAR(AH$4)+{-1;0;1},1,3))+2))/7)+1,\"00\"),\"\")","v":{"$error":"#NUM!"}},{"$f":"IF(WEEKDAY(AI$4,T_SE)=4,\"S\"&TEXT(INT((AI$4-LOOKUP(AI$4,DATE(YEAR(AI$4)+{-1;0;1},1,3)-WEEKDAY(DATE(YEAR(AI$4)+{-1;0;1},1,3))+2))/7)+1,\"00\"),\"\")","v":{"$error":"#NUM!"}},{"$f":"IF(WEEKDAY(AJ$4,T_SE)=4,\"S\"&TEXT(INT((AJ$4-LOOKUP(AJ$4,DATE(YEAR(AJ$4)+{-1;0;1},1,3)-WEEKDAY(DATE(YEAR(AJ$4)+{-1;0;1},1,3))+2))/7)+1,\"00\"),\"\")","v":{"$error":"#NUM!"}},{"$f":"IF(WEEKDAY(AK$4,T_SE)=4,\"S\"&TEXT(INT((AK$4-LOOKUP(AK$4,DATE(YEAR(AK$4)+{-1;0;1},1,3)-WEEKDAY(DATE(YEAR(AK$4)+{-1;0;1},1,3))+2))/7)+1,\"00\"),\"\")","v":{"$error":"#NUM!"}},{"$f":"IF(WEEKDAY(AL$4,T_SE)=4,\"S\"&TEXT(INT((AL$4-LOOKUP(AL$4,DATE(YEAR(AL$4)+{-1;0;1},1,3)-WEEKDAY(DATE(YEAR(AL$4)+{-1;0;1},1,3))+2))/7)+1,\"00\"),\"\")","v":{"$error":"#NUM!"}},{"$f":"IF(WEEKDAY(AM$4,T_SE)=4,\"S\"&TEXT(INT((AM$4-LOOKUP(AM$4,DATE(YEAR(AM$4)+{-1;0;1},1,3)-WEEKDAY(DATE(YEAR(AM$4)+{-1;0;1},1,3))+2))/7)+1,\"00\"),\"\")","v":{"$error":"#NUM!"}},{"$f":"IF(WEEKDAY(AN$4,T_SE)=4,\"S\"&TEXT(INT((AN$4-LOOKUP(AN$4,DATE(YEAR(AN$4)+{-1;0;1},1,3)-WEEKDAY(DATE(YEAR(AN$4)+{-1;0;1},1,3))+2))/7)+1,\"00\"),\"\")","v":{"$error":"#NUM!"}},{"$f":"IF(WEEKDAY(AO$4,T_SE)=4,\"S\"&TEXT(INT((AO$4-LOOKUP(AO$4,DATE(YEAR(AO$4)+{-1;0;1},1,3)-WEEKDAY(DATE(YEAR(AO$4)+{-1;0;1},1,3))+2))/7)+1,\"00\"),\"\")","v":{"$error":"#NUM!"}},{"$f":"IF(WEEKDAY(AP$4,T_SE)=4,\"S\"&TEXT(INT((AP$4-LOOKUP(AP$4,DATE(YEAR(AP$4)+{-1;0;1},1,3)-WEEKDAY(DATE(YEAR(AP$4)+{-1;0;1},1,3))+2))/7)+1,\"00\"),\"\")","v":{"$error":"#NUM!"}},{"$f":"IF(WEEKDAY(AQ$4,T_SE)<=4,\"S\"&TEXT(INT((AQ$4-LOOKUP(AQ$4,DATE(YEAR(AQ$4)+{-1;0;1},1,3)-WEEKDAY(DATE(YEAR(AQ$4)+{-1;0;1},1,3))+2))/7)+1,\"00\"),\"\")","v":{"$error":"#NUM!"}}]
[null,null,null,null,null,null,{"$f":"PROPER(TEXT(Date_Deb,\"jjj\"))","v":"Mer"},{"$f":"PROPER(TEXT(H4,\"jjj\"))","v":"Jeu"},{"$f":"PROPER(TEXT(I4,\"jjj\"))","v":"Ven"},"Sam","Dim","Lun","Mar","Mer","Jeu","Ven","Sam","Dim","Lun","Mar","Mer","Jeu","Ven","Sam","Dim","Lun","Mar","Mer","Jeu","Ven","Sam","Dim","Lun","Mar","Mer","Jeu","Ven","Sam","Dim","Lun","Mar","Mer","Jeu"]
[null,null,null,null,null,null,{"$f":"TODAY()-Archive+_DC+_SB","v":"2018-02-14"},{"$f":"Date_Deb+1","v":"2018-02-15"},{"$f":"H4+1","v":"2018-02-16"},{"$f":"I4+1","v":"2018-02-17"},"2018-02-18","2018-02-19","2018-02-20","2018-02-21","2018-02-22","2018-02-23","2018-02-24","2018-02-25","2018-02-26","2018-02-27","2018-02-28","2018-03-01","2018-03-02","2018-03-03","2018-03-04","2018-03-05","2018-03-06","2018-03-07","2018-03-08","2018-03-09","2018-03-10","2018-03-11","2018-03-12","2018-03-13","2018-03-14","2018-03-15","2018-03-16","2018-03-17","2018-03-18","2018-03-19","2018-03-20","2018-03-21","2018-03-22"]
["Intitulé 1","Intitulé 2","Intitulé 3","Intitulé 4","Intitulé 5","Intitulé 6","Colonne1","Colonne2","Colonne3","Colonne4","Colonne5","Colonne6","Colonne7","Colonne8","Colonne9","Colonne10","Colonne11","Colonne12","Colonne13","Colonne14","Colonne15","Colonne16","Colonne17","Colonne18","Colonne19","Colonne20","Colonne21","Colonne22","Colonne23","Colonne24","Colonne25","Colonne26","Colonne27","Colonne28","Colonne29","Colonne30","Colonne31","Colonne32","Colonne33","Colonne34","Colonne35","Colonne36","Colonne37"," "]
["LouReeD","LRD",null,null,null,null,{"$f":"SUMPRODUCT((Tab_Résa[[#This Row],[Intitulé 1]]=Tableau2[Nom])*(Tab_Résa[[#This Row],[Intitulé 2]]=Tableau2[Prénom])*(G$4>=Tableau2[date de début])*(G$4<Tableau2[Date de fin]))","v":1},{"$f":"SUMPRODUCT((Tab_Résa[[#This Row],[Intitulé 1]]=Tableau2[Nom])*(Tab_Résa[[#This Row],[Intitulé 2]]=Tableau2[Prénom])*(H$4>=Tableau2[date de début])*(H$4<Tableau2[Date de fin]))","v":1},{"$f":"SUMPRODUCT((Tab_Résa[[#This Row],[Intitulé 1]]=Tableau2[Nom])*(Tab_Résa[[#This Row],[Intitulé 2]]=Tableau2[Prénom])*(I$4>=Tableau2[date de début])*(I$4<Tableau2[Date de fin]))","v":1},{"$f":"SUMPRODUCT((Tab_Résa[[#This Row],[Intitulé 1]]=Tableau2[Nom])*(Tab_Résa[[#This Row],[Intitulé 2]]=Tableau2[Prénom])*(J$4>=Tableau2[date de début])*(J$4<Tableau2[Date de fin]))","v":1},{"$f":"SUMPRODUCT((Tab_Résa[[#This Row],[Intitulé 1]]=Tableau2[Nom])*(Tab_Résa[[#This Row],[Intitulé 2]]=Tableau2[Prénom])*(K$4>=Tableau2[date de début])*(K$4<Tableau2[Date de fin]))","v":1},{"$f":"SUMPRODUCT((Tab_Résa[[#This Row],[Intitulé 1]]=Tableau2[Nom])*(Tab_Résa[[#This Row],[Intitulé 2]]=Tableau2[Prénom])*(L$4>=Tableau2[date de début])*(L$4<Tableau2[Date de fin]))","v":1},{"$f":"SUMPRODUCT((Tab_Résa[[#This Row],[Intitulé 1]]=Tableau2[Nom])*(Tab_Résa[[#This Row],[Intitulé 2]]=Tableau2[Prénom])*(M$4>=Tableau2[date de début])*(M$4<Tableau2[Date de fin]))","v":1},{"$f":"SUMPRODUCT((Tab_Résa[[#This Row],[Intitulé 1]]=Tableau2[Nom])*(Tab_Résa[[#This Row],[Intitulé 2]]=Tableau2[Prénom])*(N$4>=Tableau2[date de début])*(N$4<Tableau2[Date de fin]))","v":1},{"$f":"SUMPRODUCT((Tab_Résa[[#This Row],[Intitulé 1]]=Tableau2[Nom])*(Tab_Résa[[#This Row],[Intitulé 2]]=Tableau2[Prénom])*(O$4>=Tableau2[date de début])*(O$4<Tableau2[Date de fin]))","v":1},{"$f":"SUMPRODUCT((Tab_Résa[[#This Row],[Intitulé 1]]=Tableau2[Nom])*(Tab_Résa[[#This Row],[Intitulé 2]]=Tableau2[Prénom])*(P$4>=Tableau2[date de début])*(P$4<Tableau2[Date de fin]))","v":0},{"$f":"SUMPRODUCT((Tab_Résa[[#This Row],[Intitulé 1]]=Tableau2[Nom])*(Tab_Résa[[#This Row],[Intitulé 2]]=Tableau2[Prénom])*(Q$4>=Tableau2[date de début])*(Q$4<Tableau2[Date de fin]))","v":0},{"$f":"SUMPRODUCT((Tab_Résa[[#This Row],[Intitulé 1]]=Tableau2[Nom])*(Tab_Résa[[#This Row],[Intitulé 2]]=Tableau2[Prénom])*(R$4>=Tableau2[date de début])*(R$4<Tableau2[Date de fin]))","v":0},{"$f":"SUMPRODUCT((Tab_Résa[[#This Row],[Intitulé 1]]=Tableau2[Nom])*(Tab_Résa[[#This Row],[Intitulé 2]]=Tableau2[Prénom])*(S$4>=Tableau2[date de début])*(S$4<Tableau2[Date de fin]))","v":0},{"$f":"SUMPRODUCT((Tab_Résa[[#This Row],[Intitulé 1]]=Tableau2[Nom])*(Tab_Résa[[#This Row],[Intitulé 2]]=Tableau2[Prénom])*(T$4>=Tableau2[date de début])*(T$4<Tableau2[Date de fin]))","v":0},{"$f":"SUMPRODUCT((Tab_Résa[[#This Row],[Intitulé 1]]=Tableau2[Nom])*(Tab_Résa[[#This Row],[Intitulé 2]]=Tableau2[Prénom])*(U$4>=Tableau2[date de début])*(U$4<Tableau2[Date de fin]))","v":0},{"$f":"SUMPRODUCT((Tab_Résa[[#This Row],[Intitulé 1]]=Tableau2[Nom])*(Tab_Résa[[#This Row],[Intitulé 2]]=Tableau2[Prénom])*(V$4>=Tableau2[date de début])*(V$4<Tableau2[Date de fin]))","v":0},{"$f":"SUMPRODUCT((Tab_Résa[[#This Row],[Intitulé 1]]=Tableau2[Nom])*(Tab_Résa[[#This Row],[Intitulé 2]]=Tableau2[Prénom])*(W$4>=Tableau2[date de début])*(W$4<Tableau2[Date de fin]))","v":0},{"$f":"SUMPRODUCT((Tab_Résa[[#This Row],[Intitulé 1]]=Tableau2[Nom])*(Tab_Résa[[#This Row],[Intitulé 2]]=Tableau2[Prénom])*(X$4>=Tableau2[date de début])*(X$4<Tableau2[Date de fin]))","v":0},{"$f":"SUMPRODUCT((Tab_Résa[[#This Row],[Intitulé 1]]=Tableau2[Nom])*(Tab_Résa[[#This Row],[Intitulé 2]]=Tableau2[Prénom])*(Y$4>=Tableau2[date de début])*(Y$4<Tableau2[Date de fin]))","v":0},{"$f":"SUMPRODUCT((Tab_Résa[[#This Row],[Intitulé 1]]=Tableau2[Nom])*(Tab_Résa[[#This Row],[Intitulé 2]]=Tableau2[Prénom])*(Z$4>=Tableau2[date de début])*(Z$4<Tableau2[Date de fin]))","v":0},{"$f":"SUMPRODUCT((Tab_Résa[[#This Row],[Intitulé 1]]=Tableau2[Nom])*(Tab_Résa[[#This Row],[Intitulé 2]]=Tableau2[Prénom])*(AA$4>=Tableau2[date de début])*(AA$4<Tableau2[Date de fin]))","v":0},{"$f":"SUMPRODUCT((Tab_Résa[[#This Row],[Intitulé 1]]=Tableau2[Nom])*(Tab_Résa[[#This Row],[Intitulé 2]]=Tableau2[Prénom])*(AB$4>=Tableau2[date de début])*(AB$4<Tableau2[Date de fin]))","v":0},{"$f":"SUMPRODUCT((Tab_Résa[[#This Row],[Intitulé 1]]=Tableau2[Nom])*(Tab_Résa[[#This Row],[Intitulé 2]]=Tableau2[Prénom])*(AC$4>=Tableau2[date de début])*(AC$4<Tableau2[Date de fin]))","v":0},{"$f":"SUMPRODUCT((Tab_Résa[[#This Row],[Intitulé 1]]=Tableau2[Nom])*(Tab_Résa[[#This Row],[Intitulé 2]]=Tableau2[Prénom])*(AD$4>=Tableau2[date de début])*(AD$4<Tableau2[Date de fin]))","v":0},{"$f":"SUMPRODUCT((Tab_Résa[[#This Row],[Intitulé 1]]=Tableau2[Nom])*(Tab_Résa[[#This Row],[Intitulé 2]]=Tableau2[Prénom])*(AE$4>=Tableau2[date de début])*(AE$4<Tableau2[Date de fin]))","v":0},{"$f":"SUMPRODUCT((Tab_Résa[[#This Row],[Intitulé 1]]=Tableau2[Nom])*(Tab_Résa[[#This Row],[Intitulé 2]]=Tableau2[Prénom])*(AF$4>=Tableau2[date de début])*(AF$4<Tableau2[Date de fin]))","v":0},{"$f":"SUMPRODUCT((Tab_Résa[[#This Row],[Intitulé 1]]=Tableau2[Nom])*(Tab_Résa[[#This Row],[Intitulé 2]]=Tableau2[Prénom])*(AG$4>=Tableau2[date de début])*(AG$4<Tableau2[Date de fin]))","v":0},{"$f":"SUMPRODUCT((Tab_Résa[[#This Row],[Intitulé 1]]=Tableau2[Nom])*(Tab_Résa[[#This Row],[Intitulé 2]]=Tableau2[Prénom])*(AH$4>=Tableau2[date de début])*(AH$4<Tableau2[Date de fin]))","v":0},{"$f":"SUMPRODUCT((Tab_Résa[[#This Row],[Intitulé 1]]=Tableau2[Nom])*(Tab_Résa[[#This Row],[Intitulé 2]]=Tableau2[Prénom])*(AI$4>=Tableau2[date de début])*(AI$4<Tableau2[Date de fin]))","v":0},{"$f":"SUMPRODUCT((Tab_Résa[[#This Row],[Intitulé 1]]=Tableau2[Nom])*(Tab_Résa[[#This Row],[Intitulé 2]]=Tableau2[Prénom])*(AJ$4>=Tableau2[date de début])*(AJ$4<Tableau2[Date de fin]))","v":0},{"$f":"SUMPRODUCT((Tab_Résa[[#This Row],[Intitulé 1]]=Tableau2[Nom])*(Tab_Résa[[#This Row],[Intitulé 2]]=Tableau2[Prénom])*(AK$4>=Tableau2[date de début])*(AK$4<Tableau2[Date de fin]))","v":0},{"$f":"SUMPRODUCT((Tab_Résa[[#This Row],[Intitulé 1]]=Tableau2[Nom])*(Tab_Résa[[#This Row],[Intitulé 2]]=Tableau2[Prénom])*(AL$4>=Tableau2[date de début])*(AL$4<Tableau2[Date de fin]))","v":0},{"$f":"SUMPRODUCT((Tab_Résa[[#This Row],[Intitulé 1]]=Tableau2[Nom])*(Tab_Résa[[#This Row],[Intitulé 2]]=Tableau2[Prénom])*(AM$4>=Tableau2[date de début])*(AM$4<Tableau2[Date de fin]))","v":0},{"$f":"SUMPRODUCT((Tab_Résa[[#This Row],[Intitulé 1]]=Tableau2[Nom])*(Tab_Résa[[#This Row],[Intitulé 2]]=Tableau2[Prénom])*(AN$4>=Tableau2[date de début])*(AN$4<Tableau2[Date de fin]))","v":0},{"$f":"SUMPRODUCT((Tab_Résa[[#This Row],[Intitulé 1]]=Tableau2[Nom])*(Tab_Résa[[#This Row],[Intitulé 2]]=Tableau2[Prénom])*(AO$4>=Tableau2[date de début])*(AO$4<Tableau2[Date de fin]))","v":0},{"$f":"SUMPRODUCT((Tab_Résa[[#This Row],[Intitulé 1]]=Tableau2[Nom])*(Tab_Résa[[#This Row],[Intitulé 2]]=Tableau2[Prénom])*(AP$4>=Tableau2[date de début])*(AP$4<Tableau2[Date de fin]))","v":0},{"$f":"SUMPRODUCT((Tab_Résa[[#This Row],[Intitulé 1]]=Tableau2[Nom])*(Tab_Résa[[#This Row],[Intitulé 2]]=Tableau2[Prénom])*(AQ$4>=Tableau2[date de début])*(AQ$4<Tableau2[Date de fin]))","v":0}]
["LouReeD","GRD",null,null,null,null,{"$f":"SUMPRODUCT((Tab_Résa[[#This Row],[Intitulé 1]]=Tableau2[Nom])*(Tab_Résa[[#This Row],[Intitulé 2]]=Tableau2[Prénom])*(G$4>=Tableau2[date de début])*(G$4<Tableau2[Date de fin]))","v":0},{"$f":"SUMPRODUCT((Tab_Résa[[#This Row],[Intitulé 1]]=Tableau2[Nom])*(Tab_Résa[[#This Row],[Intitulé 2]]=Tableau2[Prénom])*(H$4>=Tableau2[date de début])*(H$4<Tableau2[Date de fin]))","v":0},{"$f":"SUMPRODUCT((Tab_Résa[[#This Row],[Intitulé 1]]=Tableau2[Nom])*(Tab_Résa[[#This Row],[Intitulé 2]]=Tableau2[Prénom])*(I$4>=Tableau2[date de début])*(I$4<Tableau2[Date de fin]))","v":0},{"$f":"SUMPRODUCT((Tab_Résa[[#This Row],[Intitulé 1]]=Tableau2[Nom])*(Tab_Résa[[#This Row],[Intitulé 2]]=Tableau2[Prénom])*(J$4>=Tableau2[date de début])*(J$4<Tableau2[Date de fin]))","v":0},{"$f":"SUMPRODUCT((Tab_Résa[[#This Row],[Intitulé 1]]=Tableau2[Nom])*(Tab_Résa[[#This Row],[Intitulé 2]]=Tableau2[Prénom])*(K$4>=Tableau2[date de début])*(K$4<Tableau2[Date de fin]))","v":0},{"$f":"SUMPRODUCT((Tab_Résa[[#This Row],[Intitulé 1]]=Tableau2[Nom])*(Tab_Résa[[#This Row],[Intitulé 2]]=Tableau2[Prénom])*(L$4>=Tableau2[date de début])*(L$4<Tableau2[Date de fin]))","v":0},{"$f":"SUMPRODUCT((Tab_Résa[[#This Row],[Intitulé 1]]=Tableau2[Nom])*(Tab_Résa[[#This Row],[Intitulé 2]]=Tableau2[Prénom])*(M$4>=Tableau2[date de début])*(M$4<Tableau2[Date de fin]))","v":0},{"$f":"SUMPRODUCT((Tab_Résa[[#This Row],[Intitulé 1]]=Tableau2[Nom])*(Tab_Résa[[#This Row],[Intitulé 2]]=Tableau2[Prénom])*(N$4>=Tableau2[date de début])*(N$4<Tableau2[Date de fin]))","v":0},{"$f":"SUMPRODUCT((Tab_Résa[[#This Row],[Intitulé 1]]=Tableau2[Nom])*(Tab_Résa[[#This Row],[Intitulé 2]]=Tableau2[Prénom])*(O$4>=Tableau2[date de début])*(O$4<Tableau2[Date de fin]))","v":0},{"$f":"SUMPRODUCT((Tab_Résa[[#This Row],[Intitulé 1]]=Tableau2[Nom])*(Tab_Résa[[#This Row],[Intitulé 2]]=Tableau2[Prénom])*(P$4>=Tableau2[date de début])*(P$4<Tableau2[Date de fin]))","v":0},{"$f":"SUMPRODUCT((Tab_Résa[[#This Row],[Intitulé 1]]=Tableau2[Nom])*(Tab_Résa[[#This Row],[Intitulé 2]]=Tableau2[Prénom])*(Q$4>=Tableau2[date de début])*(Q$4<Tableau2[Date de fin]))","v":0},{"$f":"SUMPRODUCT((Tab_Résa[[#This Row],[Intitulé 1]]=Tableau2[Nom])*(Tab_Résa[[#This Row],[Intitulé 2]]=Tableau2[Prénom])*(R$4>=Tableau2[date de début])*(R$4<Tableau2[Date de fin]))","v":0},{"$f":"SUMPRODUCT((Tab_Résa[[#This Row],[Intitulé 1]]=Tableau2[Nom])*(Tab_Résa[[#This Row],[Intitulé 2]]=Tableau2[Prénom])*(S$4>=Tableau2[date de début])*(S$4<Tableau2[Date de fin]))","v":0},{"$f":"SUMPRODUCT((Tab_Résa[[#This Row],[Intitulé 1]]=Tableau2[Nom])*(Tab_Résa[[#This Row],[Intitulé 2]]=Tableau2[Prénom])*(T$4>=Tableau2[date de début])*(T$4<Tableau2[Date de fin]))","v":0},{"$f":"SUMPRODUCT((Tab_Résa[[#This Row],[Intitulé 1]]=Tableau2[Nom])*(Tab_Résa[[#This Row],[Intitulé 2]]=Tableau2[Prénom])*(U$4>=Tableau2[date de début])*(U$4<Tableau2[Date de fin]))","v":0},{"$f":"SUMPRODUCT((Tab_Résa[[#This Row],[Intitulé 1]]=Tableau2[Nom])*(Tab_Résa[[#This Row],[Intitulé 2]]=Tableau2[Prénom])*(V$4>=Tableau2[date de début])*(V$4<Tableau2[Date de fin]))","v":0},{"$f":"SUMPRODUCT((Tab_Résa[[#This Row],[Intitulé 1]]=Tableau2[Nom])*(Tab_Résa[[#This Row],[Intitulé 2]]=Tableau2[Prénom])*(W$4>=Tableau2[date de début])*(W$4<Tableau2[Date de fin]))","v":0},{"$f":"SUMPRODUCT((Tab_Résa[[#This Row],[Intitulé 1]]=Tableau2[Nom])*(Tab_Résa[[#This Row],[Intitulé 2]]=Tableau2[Prénom])*(X$4>=Tableau2[date de début])*(X$4<Tableau2[Date de fin]))","v":0},{"$f":"SUMPRODUCT((Tab_Résa[[#This Row],[Intitulé 1]]=Tableau2[Nom])*(Tab_Résa[[#This Row],[Intitulé 2]]=Tableau2[Prénom])*(Y$4>=Tableau2[date de début])*(Y$4<Tableau2[Date de fin]))","v":0},{"$f":"SUMPRODUCT((Tab_Résa[[#This Row],[Intitulé 1]]=Tableau2[Nom])*(Tab_Résa[[#This Row],[Intitulé 2]]=Tableau2[Prénom])*(Z$4>=Tableau2[date de début])*(Z$4<Tableau2[Date de fin]))","v":0},{"$f":"SUMPRODUCT((Tab_Résa[[#This Row],[Intitulé 1]]=Tableau2[Nom])*(Tab_Résa[[#This Row],[Intitulé 2]]=Tableau2[Prénom])*(AA$4>=Tableau2[date de début])*(AA$4<Tableau2[Date de fin]))","v":0},{"$f":"SUMPRODUCT((Tab_Résa[[#This Row],[Intitulé 1]]=Tableau2[Nom])*(Tab_Résa[[#This Row],[Intitulé 2]]=Tableau2[Prénom])*(AB$4>=Tableau2[date de début])*(AB$4<Tableau2[Date de fin]))","v":0},{"$f":"SUMPRODUCT((Tab_Résa[[#This Row],[Intitulé 1]]=Tableau2[Nom])*(Tab_Résa[[#This Row],[Intitulé 2]]=Tableau2[Prénom])*(AC$4>=Tableau2[date de début])*(AC$4<Tableau2[Date de fin]))","v":0},{"$f":"SUMPRODUCT((Tab_Résa[[#This Row],[Intitulé 1]]=Tableau2[Nom])*(Tab_Résa[[#This Row],[Intitulé 2]]=Tableau2[Prénom])*(AD$4>=Tableau2[date de début])*(AD$4<Tableau2[Date de fin]))","v":0},{"$f":"SUMPRODUCT((Tab_Résa[[#This Row],[Intitulé 1]]=Tableau2[Nom])*(Tab_Résa[[#This Row],[Intitulé 2]]=Tableau2[Prénom])*(AE$4>=Tableau2[date de début])*(AE$4<Tableau2[Date de fin]))","v":0},{"$f":"SUMPRODUCT((Tab_Résa[[#This Row],[Intitulé 1]]=Tableau2[Nom])*(Tab_Résa[[#This Row],[Intitulé 2]]=Tableau2[Prénom])*(AF$4>=Tableau2[date de début])*(AF$4<Tableau2[Date de fin]))","v":0},{"$f":"SUMPRODUCT((Tab_Résa[[#This Row],[Intitulé 1]]=Tableau2[Nom])*(Tab_Résa[[#This Row],[Intitulé 2]]=Tableau2[Prénom])*(AG$4>=Tableau2[date de début])*(AG$4<Tableau2[Date de fin]))","v":0},{"$f":"SUMPRODUCT((Tab_Résa[[#This Row],[Intitulé 1]]=Tableau2[Nom])*(Tab_Résa[[#This Row],[Intitulé 2]]=Tableau2[Prénom])*(AH$4>=Tableau2[date de début])*(AH$4<Tableau2[Date de fin]))","v":0},{"$f":"SUMPRODUCT((Tab_Résa[[#This Row],[Intitulé 1]]=Tableau2[Nom])*(Tab_Résa[[#This Row],[Intitulé 2]]=Tableau2[Prénom])*(AI$4>=Tableau2[date de début])*(AI$4<Tableau2[Date de fin]))","v":0},{"$f":"SUMPRODUCT((Tab_Résa[[#This Row],[Intitulé 1]]=Tableau2[Nom])*(Tab_Résa[[#This Row],[Intitulé 2]]=Tableau2[Prénom])*(AJ$4>=Tableau2[date de début])*(AJ$4<Tableau2[Date de fin]))","v":0},{"$f":"SUMPRODUCT((Tab_Résa[[#This Row],[Intitulé 1]]=Tableau2[Nom])*(Tab_Résa[[#This Row],[Intitulé 2]]=Tableau2[Prénom])*(AK$4>=Tableau2[date de début])*(AK$4<Tableau2[Date de fin]))","v":0},{"$f":"SUMPRODUCT((Tab_Résa[[#This Row],[Intitulé 1]]=Tableau2[Nom])*(Tab_Résa[[#This Row],[Intitulé 2]]=Tableau2[Prénom])*(AL$4>=Tableau2[date de début])*(AL$4<Tableau2[Date de fin]))","v":1},{"$f":"SUMPRODUCT((Tab_Résa[[#This Row],[Intitulé 1]]=Tableau2[Nom])*(Tab_Résa[[#This Row],[Intitulé 2]]=Tableau2[Prénom])*(AM$4>=Tableau2[date de début])*(AM$4<Tableau2[Date de fin]))","v":1},{"$f":"SUMPRODUCT((Tab_Résa[[#This Row],[Intitulé 1]]=Tableau2[Nom])*(Tab_Résa[[#This Row],[Intitulé 2]]=Tableau2[Prénom])*(AN$4>=Tableau2[date de début])*(AN$4<Tableau2[Date de fin]))","v":1},{"$f":"SUMPRODUCT((Tab_Résa[[#This Row],[Intitulé 1]]=Tableau2[Nom])*(Tab_Résa[[#This Row],[Intitulé 2]]=Tableau2[Prénom])*(AO$4>=Tableau2[date de début])*(AO$4<Tableau2[Date de fin]))","v":1},{"$f":"SUMPRODUCT((Tab_Résa[[#This Row],[Intitulé 1]]=Tableau2[Nom])*(Tab_Résa[[#This Row],[Intitulé 2]]=Tableau2[Prénom])*(AP$4>=Tableau2[date de début])*(AP$4<Tableau2[Date de fin]))","v":1},{"$f":"SUMPRODUCT((Tab_Résa[[#This Row],[Intitulé 1]]=Tableau2[Nom])*(Tab_Résa[[#This Row],[Intitulé 2]]=Tableau2[Prénom])*(AQ$4>=Tableau2[date de début])*(AQ$4<Tableau2[Date de fin]))","v":0}]
[null,"Plusieurs MFC existent sur cette feuille :"]
[null,null,"3 pour afficher les différents jours chômés (en fonction de vos priorités d'affichage, il vous faudra peut-être changer l'ordre des règles de ces MFC) :"]
[null,null,null,"violet clair = jour de la semaine chômé (exemple tous les samedis et dimanches). Cette sélection de jour chômés se fait par simple coche ou décoche sur la feuille \"Paramètre Application\"."]
[null,null,null,"violet Moyen = les jours fériés \"Français\" dont les deux d'Alsace - S'il ne faut pas les afficher il suffit alors de les décochés sur la feuille \"Paramètres Application\"."]
[null,null,null,null,"Il y a gestion de leur répétition d'une année sur l'autre."]
[null,null,null,"violet foncé = jours chômés définis par l'utilisateur en plus de ceux énoncé si dessus. La différence est que ces jours ne sont pas gérés au niveau de la répétition d'une année sur l'autre."]
[null,null,"1 pour repérer le jour \"Aujourd'hui\""]
[null,null,null,"vert lumineux"]
[null,null,"1 pour différencier les semaines paires des semaines impaires avec le \"découpage visuel\" de ces semaines."]
[null,null,"1 pour diférencier les mois impairs des mois pairs et ainsi faire le découpage visuel de ces mois."]
[null,"Tant qu'il y a un jour qui appartient à une semaine qui est affiché, alors le numéro de semaine est affiché, sinon celui-ci n'est indiqué qu'une fois par semaine sur le jour médiant c’est-à-dire le jeudi pour une semaine qui commence un lundi."]
[null,null,"Ce jour de début de semaine est paramètrable sur la feuille \"Paramètre Application\", et du coup ce sera le nouveau jour médiant qui indiquera le numéro de semaine."]
[null,"Les Spin Boutons permettent de passer le planning de mois en mois dans un sens ou dans l'autre."]
[null,"La ScrollBarre permet de passer de jour en jour du premier jour du mois sélectionné avec les Spins Boutons et jusqu'à 366 jour plus loin."]
[null,"Lors d'un \"Spin\" la valeur de la scrollbarre passe à 0"]
[null,"La cellule G4 = Date_Deb est la référence pour l'affichage du reste du planning."]
[null,"Sa valeur est égale à date d'aujourd'hui - Archive (nombre de jours visible avant aujourd'hui)+ _DC (valeur de décallage en nombre de jour des Spin boutons) + _SB (valeur de décallage en nombre de jour de la ScrllBarre)"]
[]
[null,"Le principe d'utilisation de ce planning :"]
[null,null,"Avoir une feuille \"Base de données\" sur laquelle se trouve des dates de début et de fin de périodes."]
[null,null,"Sur la ligne 6 et suivante de ce planning sur les colonnes G à AQ, il faut inscrire des formules de type SOMMEPROD (par exemple) afin que ces dernières retournes des valeurs en fonction des données de la base de données"]
[null,null,"Une MFC est mise en place par rapport à ces valeurs, et au final vous avez un planning perpétuel qui vous affiche des périodes \"quelconques\" dessus."]
[null,null,"pour l'exemple vous pouvez regardez mes applications REPLI et CHAMHO qui utilisent ce type de calendrier"]
[null,"Un des avantages et qu'il n'est pas util de scroller horizontalement pour faire définler le planning, et les données à afficher sont simples d'ajout car contenu dans un tableau structuré."]
[]
[null,"Sur la ligne 6 un exemple de formule :"]
[null,null,"on cherche dans la base de données la valeur de la colonne intitulé 1, puis 2, puis si une la date de début correspond à la date de la ligne 4 de la colonne concidérée et de même pour la date de fin."]
[null,null,"si on trouve =1 sinon = 0"]
[null,null,"pour l'exemple je n'ai mis une MFC que sur les 1, les 0 soit une MFC soit option d'Excel/ne pas afficher les 0."]
[null,null,"pour l'exemple j'ai également mis une période en 2005 ! Avec les spins boutons vous pouvez y aller, la barre bleue s'affichera !"]
[null,"Il est possible d'ajouter des MFC pour supprimer les barres verticales des cellules au niveau des périodes."]
[null,"Mais là c'est à vous de mettre en forme et en couleur en fonction de vos besoins."]
[]
[null,"@ bientôt"]
[]
[null,"LouReeD"]

{"sheet":"Paramètres_Application","index":1,"n_rows":32,"n_cols":10,"rows_kept":32,"cut":false,"hidden":false,"merged":[[0,2,0,3]]}
["Décalage d'affichage du Planning","Sélection des\njours chômés","Sélection des\njours fériés",null,"Indications des dates chômées supplémentaires","Répétitif ?","Dates calculées","Premier jour de la semaine"]
[0,false,true,{"$f":"IF($C2,DATE(IF(Date_Deb>DATE(YEAR(Date_Deb),1,1),YEAR(Date_Deb)+1,YEAR(Date_Deb)),1,1),\"\")","v":"2019-01-01"},"2015-02-27",true,{"$f":"IF($E2<>\"\",IF($F2,DATE(IF(Date_Deb>DATE(YEAR(Date_Deb),MONTH(E2),DAY(E2)),YEAR(Date_Deb)+1,YEAR(Date_Deb)),MONTH(E2),DAY(E2)),$E2),\"\")","v":"2018-02-27"},"Lundi"]
[0,false,true,{"$f":"IF(C3,IF(AND(Date_Deb>Pâq_Année_N,Date_Deb<=Pâq_Année_N1),Pâq_Année_N1,Pâq_Année_N),\"\")","v":"2018-04-01"},"2018-02-26",true,"2018-02-26",{"$f":"LOOKUP(H2,{\"Dimanche\";\"Jeudi\";\"Lundi\";\"Mardi\";\"Mercredi\";\"Samedi\";\"Vendredi\"},{17;14;11;12;13;16;15})","v":11}]
["Nombre de jours",false,true,{"$f":"IF(C4,IF(AND(Date_Deb>Pâq_Année_N+1,Date_Deb<=Pâq_Année_N1),Pâq_Année_N1+1,Pâq_Année_N+1),\"\")","v":"2018-04-02"},null,false,"",null,null,"Premier jour de la semaine :"]
["d'archive sur",false,true,{"$f":"IF($C5,DATE(IF(Date_Deb>DATE(YEAR(Date_Deb),5,1),YEAR(Date_Deb)+1,YEAR(Date_Deb)),5,1),\"\")","v":"2018-05-01"},null,false,"",null,null,"Indique le premier jour de la semaine, c’est-à-dire l'information qu'il faut pour le \"déoupage visuel\" des différentes semaines du planning"]
["\"Aujourd'hui\"",false,true,{"$f":"IF(C6,IF(AND(Date_Deb>Pâq_Année_N+39,Date_Deb<=Pâq_Année_N1),Pâq_Année_N1+39,Pâq_Année_N+39),\"\")","v":"2018-05-10"},null,false,"",null,null,"Indications des dates chômées supplémentaires :"]
[14,true,true,{"$f":"IF(C7,IF(AND(Date_Deb>Pâq_Année_N+40,Date_Deb<=Pâq_Année_N1),Pâq_Année_N1+40,Pâq_Année_N+40),\"\")","v":"2018-05-11"},null,false,"",null,null,"Ici vous indiquez les dates pour lesquelles l'application les affichera en couleur pour indiquer qu'elles sont chômées"]
[null,true,true,{"$f":"IF($C8,DATE(IF(Date_Deb>DATE(YEAR(Date_Deb),5,8),YEAR(Date_Deb)+1,YEAR(Date_Deb)),5,8),\"\")","v":"2018-05-08"},null,false,"",null,null,"Cette nouvelle version vous permet de \"créer\" vos dates fériées : il vous suffit d'entrer une date et de cocher la case à cocher"]
[null,{"$f":"CONCATENATE(B2*1,B3*1,B4*1,B5*1,B6*1,B7*1,B8*1)","v":"0000011"},true,{"$f":"IF(C9,IF(AND(Date_Deb>Pâq_Année_N+49,Date_Deb<=Pâq_Année_N1),Pâq_Année_N1+49,Pâq_Année_N+49),\"\")","v":"2018-05-20"},null,false,"",null,null,"comme cela cette date sera considérée comme fériée toutes les années."]
[null,null,true,{"$f":"IF(C16,IF(AND(Date_Deb>Pâq_Année_N+50,Date_Deb<=Pâq_Année_N1),Pâq_Année_N1+50,Pâq_Année_N+50),\"\")","v":"2018-05-21"},null,false,"",null,null,"Si la date est férié que pour une année, entrez la date et décochez la case à cocher, elle ne sera \"comptabilisée\" qu'une seule fois."]
[null,null,true,{"$f":"IF($C11,DATE(IF(Date_Deb>DATE(YEAR(Date_Deb),7,14),YEAR(Date_Deb)+1,YEAR(Date_Deb)),7,14),\"\")","v":"2018-07-14"},null,false,"",null,null,"Sélection des jours fériés :"]
[null,null,true,{"$f":"IF($C12,DATE(IF(Date_Deb>DATE(YEAR(Date_Deb),8,15),YEAR(Date_Deb)+1,YEAR(Date_Deb)),8,15),\"\")","v":"2018-08-15"},null,false,"",null,null,"Sélectionnez les jours fériés qui seront effectifs sur le planning par simple coche et décoche"]
[null,null,true,{"$f":"IF($C13,DATE(IF(Date_Deb>DATE(YEAR(Date_Deb),11,1),YEAR(Date_Deb)+1,YEAR(Date_Deb)),11,1),\"\")","v":"2018-11-01"},null,false,"",null,null,"Sélection des jours chômés :"]
[null,null,true,{"$f":"IF($C14,DATE(IF(Date_Deb>DATE(YEAR(Date_Deb),11,11),YEAR(Date_Deb)+1,YEAR(Date_Deb)),11,11),\"\")","v":"2018-11-11"},null,false,"",null,null,"Par simple coche et décoche, sélectionnez les jours chômés à afficher sur le planning"]
[null,null,true,{"$f":"IF($C15,DATE(IF(Date_Deb>DATE(YEAR(Date_Deb),12,25),YEAR(Date_Deb)+1,YEAR(Date_Deb)),12,25),\"\")","v":"2018-12-25"},null,false,"",null,null,"Décalage d'affichage du Planning :"]
[null,null,true,{"$f":"IF($C16,DATE(IF(Date_Deb>DATE(YEAR(Date_Deb),12,26),YEAR(Date_Deb)+1,YEAR(Date_Deb)),12,26),\"\")","v":"2018-12-26"},null,false,"",null,null,"Ce sont  des valeurs système qui permettent le scroll du planning perpétuel, ne pas toucher, si ce n'est pour les mettres à 0 afin d'initialiser la planning à \"aujourd'hui\""]
[null,null,null,null,null,false,"",null,null,"Nombre de jours d'archive sur \"Aujourd'hui\" :"]
[null,null,null,null,null,false,"",null,null,"Valeur système afin d'afficher un historique de planning de 14 jours avant \"aujourd'hui\". Si égal à 0 alors aujourd'hui est en première colonne"]
[null,null,null,null,null,false,""]
[null,null,null,null,null,false,"",null,null,"Les cellules violettes en bas des colonnes contiennent pour certaines des formules dont le résultat est utilisé pour les MFC du planning. Ne pas toucher !"]
[null,null,null,null,null,false,""]
[null,null,null,null,null,false,"",null,null,"@ bientôt"]
[null,null,null,null,null,false,""]
[null,null,null,null,null,false,"",null,null,"LouReeD"]
[null,null,null,null,null,false,""]
[null,null,null,null,null,false,""]
[null,null,null,null,null,false,""]
[null,null,null,null,null,false,""]
[null,null,null,null,null,false,""]
[null,null,null,null,null,false,""]
[null,null,null,null,null,false,""]
[null,null,null,null,null,false,""]

{"sheet":"Base de données","index":2,"n_rows":6,"n_cols":4,"rows_kept":6,"cut":false,"hidden":false,"merged":[]}
["Nom","Prénom","date de début","Date de fin"]
["LouReeD","LRD","2018-02-12","2018-02-23"]
["LouReeD","GRD","2018-03-17","2018-03-22"]
["LouReeD","LRD","2018-01-01","2018-01-05"]
["LouReeD","GRD","2018-01-04","2018-01-14"]
["LouReeD","LRD","2005-05-11","2005-06-22"]